Cogmind - Beta 12 @@@ ROGUE MODE // 2023.03.28 @ 14:03:07 Player: Mr Goldstein Result: Self-destructed Performance ------------- Evolutions (1) 500 Regions Visited (2) 400 Robots Destroyed (44) 220 Value Destroyed (729) 729 Prototype IDs (4) 80 Alien Tech Used (0) 0 Bonus (0) 0 TOTAL SCORE: 1929 Bonus ------- None Cogmind --------- Core Integrity 329/400 Matter 24/450 Energy 273/280 System Corruption 0% Temperature Cool (6) Movement Rolling (95) Ox1 Location -9/Materials Parts ------- > --- POWER (1) -------- Heavy Ion Engine > --- PROPULSION (3) --- Wheel Wheel > --- UTILITY (3) ------ Large Storage Unit Compact Matter Pod Terrain Scanner > --- WEAPON (2) ------- (None) > --- INVENTORY (15) --- Light Ion Engine Light Ion Engine Improved Flight Unit Heat Sink Hacking Suite Light Assault Rifle Peak State ------------ > --- POWER ------------ Heavy Ion Engine > --- PROPULSION ------- Wheel Wheel Wheel > --- UTILITY ---------- Large Storage Unit Compact Matter Pod Terrain Scanner > --- WEAPON ----------- Assault Rifle Rocket Launcher > --- INVENTORY -------- Light Ion Engine Wheel Improved Flight Unit Heat Sink Hacking Suite Light Assault Rifle Grenade Launcher [Rating: 15] Favorites ----------- Power Light Ion Engine Engine Light Ion Engine Propulsion Wheel Wheel Wheel Utility Terrain Scanner Device Terrain Scanner Storage Small Storage Unit Weapon Assault Rifle Ballistic Gun Assault Rifle Launcher Grenade Launcher Build | -11 -10 -9 ------- Run | Jun Mat Mat Slots Evolved 2 | . . 2 Power . | . . . Propulsion 1 | . . 1 Utility 1 | . . 1 Weapon . | . . . Parts Attached 27 | 7 8 12 Power 4 | 1 2 1 Engine 4 | 1 2 1 Core . | . . . Reactor . | . . . Propulsion 7 | 2 2 3 Treads . | . . . Leg . | . . . Wheel 7 | 2 2 3 Hover . | . . . Flight . | . . . Utility 5 | 1 2 2 Device 1 | . 1 . Storage 4 | 1 1 2 Processor . | . . . Hackware . | . . . Protection . | . . . Artifact . | . . . Weapon 11 | 3 2 6 Energy Gun . | . . . Energy Cannon . | . . . Ballistic Gun 6 | 3 1 2 Ballistic Cannon . | . . . Launcher 5 | . 1 4 Special Weapon . | . . . Impact Weapon . | . . . Slashing Weapon . | . . . Piercing Weapon . | . . . Special Melee Weapon . | . . . Unidentified Prototypes . | . . . Parts Lost 8 | . 1 7 Power 1 | . 1 . Propulsion 3 | . . 3 Utility . | . . . Weapon 4 | . . 4 Highest Loss Streak 5 | . 1 5 To Critical Strikes . | . . . Average Slot Usage (%) 96 | . 95 99 Engine 12 | . 14 11 Wheel 29 | . 28 32 Device 10 | . 9 11 Storage 16 | . 14 22 Ballistic Gun 25 | . 27 20 Naked Turns . | . . . Heaviest Build 36 | 12 20 36 Greatest Support 30 | 20 20 30 Greatest Overweight (x) 1 | . . 1 Average Overweight (x) . | . . . Largest Inventory Capacity 15 | 8 10 15 Average Capacity 10 | 7 8 13 Most Carried 9 | 4 7 9 Average Carried 5 | 1 4 6 Final Capacity 15 | 8 10 15 Final Carried 6 | 2 5 6 Class Distribution -------------------- 88% | Mutant 11% | Scavenger-Mutant Dominant Class ---------------- Mutant | -10/Materials Mutant | -9/Materials Resources | -11 -10 -9 ----------- Run | Jun Mat Mat Matter Collected 849 | 185 451 213 Remotely . | . . . Salvage Created 920 | . 567 353 Parts 87 | . 48 39 Haulers Intercepted 2 | . 1 1 Recyclers Shooed 3 | . 2 1 Parts Field Recycled . | . . . Retrieved Matter . | . . . Parts Self-Destructed . | . . . Prevented . | . . . Kills | -11 -10 -9 ------- Run | Jun Mat Mat Combat Hostiles Destroyed 28 | . 14 14 Guns 14 | . 11 3 AOE 14 | . 3 11 Classes Destroyed 8 | . 7 1 Worker 9 | . 4 5 Hauler 2 | . 1 1 Recycler 1 | . 1 . Operator 2 | . 2 . Watcher 2 | . 1 1 Swarmer 15 | . 6 9 Grunt 12 | . 8 4 Sentry 1 | . . 1 Best Kill Streak 9 | . 5 9 Combat Bots Only 6 | . 5 6 Max Kills in Single Turn 3 | . 3 3 Gunslinging . | . . . Exploded 3 | . 3 2 Melee . | . . . Uniques/NPCs Destroyed . | . . . Combat | -11 -10 -9 -------- Run | Jun Mat Mat Damage Taken 930 | . 404 526 Core 158 | . 87 71 Absorbed by Shields . | . . . Core Remaining (%) 82 | 100 65 . Volleys Fired 96 | . 65 31 Largest 2 | . 2 2 Hottest 53 | . 50 53 Shots Fired 191 | . 130 61 Gun 174 | . 125 49 Cannon . | . . . Launcher 17 | . 5 12 Special . | . . . Kinetic 174 | . 125 49 Thermal . | . . . Explosive 17 | . 5 12 Electromagnetic . | . . . Robot Hit Streak 17 | . 17 13 Robot Miss Streak 5 | . 4 5 Penetration Max . | . . . Secondary Targets 1 | . 1 . Max Gunslinging Chain 1 | . 1 . Shots Hit Robots 111 | . 80 31 Core Hits 59 | . 32 27 Critical Kills 1 | . 1 . Critical Parts Destroyed . | . . . Critical Strikes 1 | . 1 . Destroy 1 | . 1 . Melee Attacks . | . . . Impact . | . . . Slashing . | . . . Piercing . | . . . Sneak Attacks . | . . . Combat Hostiles . | . . . Follow-up Attacks . | . . . Damage Inflicted 2369 | . 1355 1014 Guns 1353 | . 1012 341 Cannons . | . . . Explosions 983 | . 310 673 Melee . | . . . Ramming 33 | . 33 . Kinetic 1353 | . 1012 341 Thermal . | . . . Explosive 983 | . 310 673 Electromagnetic . | . . . Impact . | . . . Slashing . | . . . Piercing . | . . . Highest Corruption . | . . . Average Corruption . | . . . Corruption Purged . | . . . Corruption Blocked . | . . . Overload Shots . | . . . Overflow Damage 62 | . 44 18 Projectiles . | . . . Explosions 62 | . 44 18 Melee . | . . . Knockbacks 1 | . 1 . Impact 1 | . 1 . Kinetic . | . . . Secondary . | . . . Self-Inflicted Damage 129 | . 31 98 Shots 4 | . 1 3 Rammed 2 | . 2 . Targets Rammed 2 | . 2 . Kicked . | . . . Crushed . | . . . Highest Temperature 18 | . 2 18 Average Temperature 4 | . 2 5 Received Heat Transfer 180 | . 66 114 Siege Activations . | . . . Robots Corrupted . | . . . Combat Hostiles . | . . . Parts Fried . | . . . Impact Corruptions . | . . . Robots Melted . | . . . Combat Hostiles . | . . . Parts Melted . | . . . Heat Transferred . | . . . Parts Sabotaged . | . . . Parts Stolen . | . . . Parts Stripped . | . . . Power Chain Reactions 1 | . . 1 Missiles Intercepted . | . . . Alert | -11 -10 -9 ------- Run | Jun Mat Mat Peak Influence 398 | . 361 398 Initial 93 | . . 93 Average 168 | . 153 211 Maximum Alert Level 1 | . 1 1 Low Security (%) 48 | 100 52 35 Level 1 51 | . 47 64 Level 2 . | . . . Level 3 . | . . . Level 4 . | . . . Level 5 . | . . . High Security . | . . . Max Security . | . . . Squads Dispatched 3 | . 2 1 Investigation 1 | . . 1 Extermination . | . . . Reinforcement 2 | . 2 . Assault . | . . . Garrison . | . . . Intercept . | . . . Searches Triggered . | . . . Construction Impeded . | . . . Haulers Reinforced . | . . . Active Scanning Responses . | . . . Cargo Convoy Interrupts . | . . . Stealth | -11 -10 -9 --------- Run | Jun Mat Mat Distress Signals . | . . . Communications Jammed . | . . . Distress Signals . | . . . Times Spotted 45 | . 24 21 Peak Tracking Total 7 | . 5 7 Tactical Retreats 2 | . 2 . Traps | -11 -10 -9 ------- Run | Jun Mat Mat Traps Triggered 1 | . 1 . Indirectly . | . . . Trap Hack Attempts . | . . . Triggered . | . . . Disarmed . | . . . Reprogrammed . | . . . Reused . | . . . Traps Extracted . | . . . Installed . | . . . Triggered . | . . . Machines | -11 -10 -9 ---------- Run | Jun Mat Mat Machines Disabled 3 | . . 3 Max in Single Turn 1 | . . 1 Machines Repaired . | . . . Machines Sabotaged . | . . . Overloaded Fab Kills . | . . . Hacking | -11 -10 -9 --------- Run | Jun Mat Mat Machines Accessed 6 | . 2 4 Terminals 5 | . 2 3 Fabricators . | . . . Repair Stations . | . . . Recycling Units . | . . . Scanalyzers 1 | . . 1 Garrison Access . | . . . Total Hacks 21 | . 9 12 Successful 12 | . 5 7 Failed 9 | . 4 5 Catastrophic . | . . . Database Lockouts . | . . . Manual 18 | . 8 10 Terminals 19 | . 9 10 Fabricators . | . . . Repair Stations . | . . . Recycling Units . | . . . Scanalyzers 2 | . . 2 Garrison Access . | . . . Terminal Hacks 7 | . 4 3 Prototype ID Bank 2 | . 1 1 Terminal Index 2 | . 1 1 Hauler Manifests 1 | . 1 . Registered Components 2 | . 1 1 Fabricator Hacks . | . . . Repair Station Hacks . | . . . Recycling Unit Hacks . | . . . Scanalyzer 2 | . . 2 Insert Component 1 | . . 1 Analyze 1 | . . 1 Garrison Access Hacks . | . . . Unauthorized Hacks 3 | . 1 2 Terminals 3 | . 1 2 Assimilate 1 | . . 1 Operators 2 | . 1 1 Fabricators . | . . . Repair Stations . | . . . Recycling Units . | . . . Scanalyzers . | . . . Garrison Access . | . . . Data Cores Recovered . | . . . Used . | . . . Hacking Detections 5 | . 1 4 Full Trace Events 1 | . . 1 Feedback Events . | . . . Feedback Blocked . | . . . Robot Schematics Acquired . | . . . Robots Built . | . . . Authchips . | . . . Time . | . . . Total Robot Build Rating . | . . . Part Schematics Acquired 1 | . . 1 Parts Built . | . . . Authchips . | . . . Time . | . . . Total Part Build Rating . | . . . Parts Repaired . | . . . Time . | . . . Parts Recycled . | . . . Recycled Matter . | . . . Retrieved Matter . | . . . Retrieved Components . | . . . Parts Scanalyzed 1 | . . 1 Part Schematics Acquired 1 | . . 1 Parts Damaged . | . . . Bothacking | -11 -10 -9 ------------ Run | Jun Mat Mat Used RIF Installer . | . . . Robots Hacked . | . . . Non-combat . | . . . Combat . | . . . Robot Hacks Applied . | . . . Relay Couplers Released . | . . . Fabnet Peak Effective % . | . . . Robots Rewired . | . . . Allies Hacked . | . . . Hacks Repelled . | . . . Allies | -11 -10 -9 -------- Run | Jun Mat Mat Total Allies . | . . . Largest Group . | . . . Highest-Rated Group . | . . . Highest-Rated Ally . | . . . Total Orders . | . . . Ally Attacks . | . . . Total Damage . | . . . Kills . | . . . Allies Corrupted . | . . . Allies Melted . | . . . Intel | -11 -10 -9 ------- Run | Jun Mat Mat Robot Analysis Total . | . . . Derelict Logs Recovered . | . . . Drone Launches . | . . . Drone Recoveries . | . . . Exploration | -11 -10 -9 ------------- Run | Jun Mat Mat Turns Passed 1486 | 57 903 526 Spaces Moved 1079 | 55 631 393 Core 6 | 6 . . Treads . | . . . Legs . | . . . Wheels 1073 | 49 631 393 Hover . | . . . Flight . | . . . Fastest Speed 50 | 50 80 80 Average Speed 83 | 76 80 90 Slowest Speed 95 | 80 80 95 Overloaded Moves . | . . . Propulsion Burnouts . | . . . Robots Hopped . | . . . Cave-ins Triggered . | . . . Exploration Rate (%) 31 | 3 58 32 Regions Visited 2 Branch Regions . Pre-discovered Areas . | . . . Known Exits Taken . | . . . Unknown Exits Taken 2 | 1 1 . Scrap Searched . | . . . Spaces Dug 5 | . 5 . Terrain Destroyed 80 | . 15 65 Melee . | . . . Projectile . | . . . AOE 80 | . 15 65 Terrain Rammed . | . . . Walls Destroyed . | . . . Machines Disabled . | . . . Actions | -11 -10 -9 --------- Run | Jun Mat Mat Total 1465 | 69 897 499 Wait 233 | . 181 52 Move 1077 | 54 630 393 Hop . | . . . Pick Up 25 | 8 8 9 Fast Attach . | . . . Attach 14 | 6 2 6 Detach . | . . . Swap 13 | 1 6 6 Drop 5 | . 3 2 Fire 96 | . 65 31 Melee . | . . . Ram 2 | . 2 . Kick . | . . . Crush . | . . . Escape Stasis . | . . . Rewire . | . . . Trap . | . . . Miscellaneous . | . . . Route ------- -11/Junkyard -10/Materials (discovered 2 exits: *Mat / [*Min]) -9/Materials History --------- Turn | Location | Event 14 | -11/Junkyard | Discovered new exit (range 15) 58 | -11/Junkyard | Entered Materials 315 | -10/Materials | Build established: Mutant 559 | -10/Materials | Discovered new exit (range 12) 721 | -10/Materials | Discovered new exit (range 16) 961 | -10/Materials | Entered another Materials area 961 | -9/Materials | Evolved 2 slots: Propulsion x1, Utility x1 1487 | -9/Materials | Self-destructed Last Messages --------------- 01468_ S-10 Pest destroyed. 01469_ K-01 Serf collects debris. 01472_ The unstable cave ceiling collapses. 01472_ K-01 Serf collects debris. 01474_ U-05 Engineer lays Concrete. 01475_ Wheel destroyed. 01475_ K-01 Serf destroyed. 01475_ Material Compactor disabled. 01475_ U-05 Engineer lays Concrete. 01476_ Wheel destroyed. 01477_ The unstable cave ceiling collapses. 01477_ U-05 Engineer builds a Wall. 01478_ O-16 Technician: "IFF HANDSHAKE FAILED. SECURING TERMINAL." 01478_ S-10 Pest destroyed. 01481_ Rocket Launcher destroyed. 01483_ Acquired Lgt. Ion Engine. 01484_ U-05 Engineer lays Concrete. 01484_ Assault Rifle destroyed. 01485_ U-05 Engineer lays Concrete. 01486_ Grenade Launcher destroyed. Map ----- +----------------------------------------------------+ | ?????????????????????????????????????????????????? | | ?????????????????????????????????????????????????? | | ?????????????????????????????????????????????????? | | ?????????????????????????????????????????????????? | | ?????????????????????????????????????????????????? | | ?????????????????????????????????????????????????? | | ?????????????????????????????????????????????????? | | ?????????????????????????????????????????????????? | | ?????????????????????????????????????????????????? | | ?????????????????????????????????????????????????? | | ???????????????????????????????????????????????#?? | | ???????????????????????????????????????????? #?? | | ????????????????#???????????????"??????????? #?? | | ???????????????????????#???????????????????? #?? | | ?????????????????????#?????????????????????? #?? | | ???????????????????????????????????????????? ##? | | ????????????#########?????###??????????????? #?? | | ????????????# #####T#####+########## #?? | | ????????????# # g #?? | | ????????????# #?? | | ???????????????? """ g% #?? | | ????????????????""""" ############# ####?? | | ????????????????""""" #?????????#?# #????? | | ????????????????"""" ###??? ? ?# #????? | | ???????????????? """ # [ #??"" """ ?# ###### | | ????????????????#### ! @####?""" """ ## # | | ????????????? [ u # """ """ ## # | | ?????????? s [ + # = # | | ??????????? %s # ! | | ??????????? =[ #+# # = | | ???????????? o ?# [ | | ???????????? # """ ?########+## | | ???????????? + """ ???????# # | | ????????????? ## """ ????#??# ### | | ????????????? ?# ??????## #?# # "Y" | | ?????????????? ??# ???" #??????# ### + """ | | ??????????????? ???+ ???" Y??#???# #?# # | | ????????????????????# ????? #???#?## ### ###### | | ????????????????????# ? ??? #??????# ## [#???? | | ??]??????????????????#??????##??????# ## #???# | | ????????????????????????????######### ## T #???? | | ????????????#??? ???????????# [# ## #???? | | ??????????????????????#???#?# T # ## #???? | | ????????????#???????? ??#???# + #### ###???? | | ?? ?????????#???????!???????# # #??# #?#???? | | ##??????????#???????????#??## [ # #### #?????? | | #?????????#????"????????############ * #?#???? | | !#???????????????????????# """" ## #########??? | | #?????????????########??# """" """## + #??? | | #?????????#???# #??# """" R"## # #??? | +----------------------------------------------------+ Best States ------------- Heat Dissipation 28 Energy Generation 14 Energy Capacity 280 Matter Stores 300 Matter Capacity 450 Sight Range 16 Terrain Scan Range 14 Terrain Scan Density 10 Evasion (%) 44 Item Schematics ----------------- Hacking Suite | -9/Materials | Scanalyzed Robot Schematics ------------------ None Fabricated ------------ Nothing Alien Tech Used ----------------- None Achievements -------------- None Challenges ------------ None Game ------ Seed EncryptedTransportTrap Manual? 0 Play Time 00:15:07 Cumulative 41.1 hours Start 2023.03.28 @ 13:25:48 End 2023.03.28 @ 14:03:07 Sessions 1 Manual Loads 0 Difficulty Rogue Special Mode None Game No. 59 Rogue 59 Adventurer 0 Explorer 0 Win Type - Total 0 Types 0/0/0/0/0/0/0/0/0 Lore% 32 Gallery% 34 Achievement% 32 Wizard Run 0 Options --------- ASCII 0 Keyboard 0 Movement Arrows Keybinds 0 Fullscreen 1 Font 12/Smallcaps Map View 83x54 Tactical HUD 1 Map Filters NONE Filters NONE Steam 1 RUN: 4d1b8d34-ba00-4af2-a643-89e4e7a5636b